Workbook

Sheet CT Data
C1: Author: Guy Schott, guy.schott@waterboards.ca.gov, 707-576-2732, updated 5/25/20
C2: CT Compliance for
C3: Giardia Lamblia Cysts by Free Chlorine
C5: Input Parameters:
C6: Water System Name: | K6: Enter Name
C7: Number of Service Connections: | K7: Enter Number
C8: System Number: | K8: Enter Number
C9: Month and Year: | K9: 2020-06-01
C10: Clearwell(s) - Volume per Foot: | K10: 8500 | L10: Gallons/Ft
C11: Short-Circuiting Factor for Clearwell(s): | K11: 0.2 | L11: t10/T (baffling factor, BF)
C12: Transmission Pipe - Volume: | K12: 2000 | L12: Gallons
C13: Short-Circuiting Factor for Pipe: | K13: 1 | L13: t10/T (baffling factor, BF)
C14: Required Log Inactivation of Giardia Cyst: | K14: 0.5 | L14: Log
D16: Data inputs should be based on when plant is on-line and flow leaving clearwell | AF16: =DATE(AF17,AG17,AG16) -> 2020-06-01 | AG16: 1
D17: Reactor Data for Peak Hourly Flow1 | I17: Ct10 Dose and Giardia cyst Log Inactivation Results | AF17: =YEAR(K9) -> 2020 | AG17: =MONTH($K$9) -> 6 | BB17: Guy Schott equations (percent error):
C18: Date | D18: Flow Rate (gpm) | E18: Tank Lowest Level (ft) | F18: Water Temp (oC) | G18: pH | H18: Chlorine Residual (mg/L) | I18: Effective Volume (BF • Vol) (gallons) | J18: Effective Contact Time (minutes) | K18: Required Dose Ct10 (mg/L•min) | L18: Delivered Dose Ct10 (mg/L•min) | M18: CT Ratio CTDLVD/CTreq | N18: Giardia Log Inactivation | R18: Pipe Diameter inch | S18: Pipe Length ft | T18: Pipe Volume Calc. gal | AJ18: AveLog | AK18: Max | AM18: EPA Eq, 1-log | AQ18: Inactivation Ratio (CTcalc/CT99.9) | BB18: Temp = 0.5, pH = 6-7.5 | BC18: Temp = 0.5, pH = 7.5-9 | BD18: Temp = 5, pH = 6-7.5 | BE18: Temp = 5, pH = 7.5-9 | BF18: Temp = 10, pH = 6-7.5 | BG18: Temp = 10, pH = 7.5-9 | BH18: Temp = 15, pH = 6-7.5 | BI18: Temp = 15, pH = 7.5-9 | BJ18: Temp = 20, pH = 6-7.5 | BK18: Temp = 20, pH = 7.5-9 | BL18: Temp = 25, pH = 6-7.5 | BM18: Temp = 25, pH = 7.5-9
C19: =AF19&"-"&AG19 -> Mon-1 | D19: 300 | E19: 10 | F19: 10 | G19: 8 | H19: 0.6 | I19: =IF(E19=0,"-",$K$10*E19*$K$11+$K$12*$K$13) -> 19000 | J19: =IF(OR(E19=0,D19=0,D19="-"),"-",I19/(D19)) -> 63.33333333 | K19: =IF(OR(D19=0,D19="-",E19=0,H19<=0,G19<5),"-",ROUNDUP(ct(F19,G19,H19)*$K$14,0)) -> 26 | L19: =IF(OR($E19=0,$D19=0,D19="-",$H19<=0),"-",J19*H19) -> 38 | M19: =IF(OR($E19=0,$D19=0,$G19<=0,D19="-",$H19<=0),"-",L19/K19) -> 1.461538462 | N19: =IF(OR($E19=0,$D19=0,D19="-",$H19<=0,G19<5),"-",$L19/$K19*$K$14) -> 0.7307692308 | R19: 6 | S19: 1200 | T19: =PI()*(R19/12)^2/4*S19*7.4805 -> 1762.551288 | AF19: =IF(ISBLANK($AF$16),"",TEXT($AF$16,"ddd")) -> Mon | AG19: 1 | AI19: 1 | AJ19: =$AF$50 -> 3.298498442 | AK19: =MAX(N19:N49) -> 12.60653409 | AM19: =IF(F19<12.5,(0.353)*(12.006+EXP(2.46-0.073*F19+0.125*H19+0.389*G19)),(0.361)*(-2.261+EXP(2.69-0.065*F19+0.111*H19+0.361*G19))) -> 52.4551721 | AQ19: =IF(OR($E19=0,$D19=0,D19="-",$H19<=0,G19<5),"-",N19/3) -> 0.2435897436 | BB19: 0.00186 | BC19: 0.00131 | BD19: 0.00173 | BE19: 0.00083 | BF19: 0.00288 | BG19: 0.00118 | BH19: 0.00272 | BI19: 0.00152 | BJ19: 0.00396 | BK19: 0.00221 | BL19: 0.00491 | BM19: 0.00223
C20: =AF20&"-"&AG20 -> Tue-2 | D20: 482 | E20: 10 | F20: 13.9 | G20: 7.68 | H20: 1.49 | I20: =IF(E20=0,"-",$K$10*E20*$K$11+$K$12*$K$13) -> 19000 | J20: =IF(OR(E20=0,D20=0,D20="-"),"-",I20/(D20)) -> 39.41908714 | K20: =IF(OR(D20=0,D20="-",E20=0,H20<=0,G20<5),"-",ROUNDUP(ct(F20,G20,H20)*$K$14,0)) -> 19 | L20: 58.73443983 | M20: 3.091286307 | N20: 1.545643154 | AF20: =IF(ISBLANK($AF$16),"",TEXT($AF$16+AG19,"ddd")) -> Tue | AG20: 2 | AI20: =AI19+1 -> 2 | AJ20: =$AF$50 -> 3.298498442 | AM20: 39.85385869 | AQ20: 0.5152143845
C21: Wed-3 | D21: 200 | E21: 6.5 | F21: 12 | G21: 7.3 | H21: 0.74 | I21: 13050 | J21: 65.25 | K21: =IF(OR(D21=0,D21="-",E21=0,H21<=0,G21<5),"-",ROUNDUP(ct(F21,G21,H21)*$K$14,0)) -> 18 | L21: 48.285 | M21: 2.6825 | N21: 1.34125 | AF21: =IF(ISBLANK($AF$16),"",TEXT($AF$16+AG20,"ddd")) -> Wed | AG21: =AG20+1 -> 3 | AI21: =AI20+1 -> 3 | AJ21: 3.298498442 | AM21: 36.53312958 | AQ21: 0.4470833333 | BB21: USEPA equations (percent error):
C22: Thu-4 | D22: 101 | E22: 3 | F22: 12 | G22: 7.3 | H22: 0.75 | I22: 7100 | J22: 70.2970297 | K22: =IF(OR(D22=0,D22="-",E22=0,H22<=0,G22<5),"-",ROUNDUP(ct(F22,G22,H22)*$K$14,0)) -> 18 | L22: 52.72277228 | M22: 2.929042904 | N22: 1.464521452 | AF22: Thu | AG22: =AG21+1 -> 4 | AI22: 4 | AJ22: 3.298498442 | AM22: 36.57352358 | AQ22: 0.4881738174 | BB22: 0.0423 | BC22: 0.04747 | BD22: 0.09263 | BE22: 0.08224 | BF22: 0.04626 | BG22: 0.02209 | BH22: 0.09658 | BI22: 0.09609 | BJ22: 0.04497 | BK22: 0.05017 | BL22: 0.11167 | BM22: 0.12612
C23: Fri-5 | D23: 6.4 | E23: 3 | F23: 12 | G23: 8 | H23: 0.5 | I23: 7100 | J23: 1109.375 | K23: =IF(OR(D23=0,D23="-",E23=0,H23<=0,G23<5),"-",ROUNDUP(ct(F23,G23,H23)*$K$14,0)) -> 22 | L23: 554.6875 | M23: 25.21306818 | N23: 12.60653409 | AF23: Fri | AG23: 5 | AI23: 5 | AJ23: 3.298498442 | AM23: 45.38765921 | AQ23: 4.20217803
C24: Sat-6 | I24: - | J24: - | K24: =IF(OR(D24=0,D24="-",E24=0,H24<=0,G24<5),"-",ROUNDUP(ct(F24,G24,H24)*$K$14,0)) -> - | L24: - | M24: - | N24: - | AF24: Sat | AG24: 6 | AI24: 6 | AJ24: 3.298498442 | AM24: 8.369916474 | AQ24: -
C25: Sun-7 | I25: - | J25: - | K25: =IF(OR(D25=0,D25="-",E25=0,H25<=0,G25<5),"-",ROUNDUP(ct(F25,G25,H25)*$K$14,0)) -> - | L25: - | M25: - | N25: - | AF25: Sun | AG25: 7 | AI25: 7 | AJ25: 3.298498442 | AM25: 8.369916474 | AQ25: -
C26: Mon-8 | D26: 8 | E26: 1 | F26: 5 | G26: 8 | H26: 0.3 | I26: 3700 | J26: 462.5 | K26: =IF(OR(D26=0,D26="-",E26=0,H26<=0,G26<5),"-",ROUNDUP(ct(F26,G26,H26)*$K$14,0)) -> 33 | L26: 138.75 | M26: 4.204545455 | N26: 2.102272727 | AF26: Mon | AG26: 8 | AI26: 8 | AJ26: 3.298498442 | AM26: 71.13904195 | AQ26: 0.7007575758
C27: Tue-9 | I27: - | J27: - | K27: =IF(OR(D27=0,D27="-",E27=0,H27<=0,G27<5),"-",ROUNDUP(ct(F27,G27,H27)*$K$14,0)) -> - | L27: - | M27: - | N27: - | AF27: Tue | AG27: 9 | AI27: 9 | AJ27: 3.298498442 | AM27: 8.369916474 | AQ27: -
C28: Wed-10 | I28: - | J28: - | K28: =IF(OR(D28=0,D28="-",E28=0,H28<=0,G28<5),"-",ROUNDUP(ct(F28,G28,H28)*$K$14,0)) -> - | L28: - | M28: - | N28: - | AF28: Wed | AG28: 10 | AI28: 10 | AJ28: 3.298498442 | AM28: 8.369916474 | AQ28: -
C29: Thu-11 | I29: - | J29: - | K29: =IF(OR(D29=0,D29="-",E29=0,H29<=0,G29<5),"-",ROUNDUP(ct(F29,G29,H29)*$K$14,0)) -> - | L29: - | M29: - | N29: - | AF29: Thu | AG29: 11 | AI29: 11 | AJ29: 3.298498442 | AM29: 8.369916474 | AQ29: -
C30: Fri-12 | I30: - | J30: - | K30: =IF(OR(D30=0,D30="-",E30=0,H30<=0,G30<5),"-",ROUNDUP(ct(F30,G30,H30)*$K$14,0)) -> - | L30: - | M30: - | N30: - | AF30: Fri | AG30: 12 | AI30: 12 | AJ30: 3.298498442 | AM30: 8.369916474 | AQ30: -
C31: Sat-13 | I31: - | J31: - | K31: =IF(OR(D31=0,D31="-",E31=0,H31<=0,G31<5),"-",ROUNDUP(ct(F31,G31,H31)*$K$14,0)) -> - | L31: - | M31: - | N31: - | AF31: Sat | AG31: 13 | AI31: 13 | AJ31: 3.298498442 | AM31: 8.369916474 | AQ31: -
C32: Sun-14 | I32: - | J32: - | K32: =IF(OR(D32=0,D32="-",E32=0,H32<=0,G32<5),"-",ROUNDUP(ct(F32,G32,H32)*$K$14,0)) -> - | L32: - | M32: - | N32: - | AF32: Sun | AG32: 14 | AI32: 14 | AJ32: 3.298498442 | AM32: 8.369916474 | AQ32: -
C33: Mon-15 | I33: - | J33: - | K33: =IF(OR(D33=0,D33="-",E33=0,H33<=0,G33<5),"-",ROUNDUP(ct(F33,G33,H33)*$K$14,0)) -> - | L33: - | M33: - | N33: - | AF33: Mon | AG33: 15 | AI33: 15 | AJ33: 3.298498442 | AM33: 8.369916474 | AQ33: -
C34: Tue-16 | I34: - | J34: - | K34: =IF(OR(D34=0,D34="-",E34=0,H34<=0,G34<5),"-",ROUNDUP(ct(F34,G34,H34)*$K$14,0)) -> - | L34: - | M34: - | N34: - | AF34: Tue | AG34: 16 | AI34: 16 | AJ34: 3.298498442 | AM34: 8.369916474 | AQ34: -
C35: Wed-17 | I35: - | J35: - | K35: =IF(OR(D35=0,D35="-",E35=0,H35<=0,G35<5),"-",ROUNDUP(ct(F35,G35,H35)*$K$14,0)) -> - | L35: - | M35: - | N35: - | AF35: Wed | AG35: 17 | AI35: 17 | AJ35: 3.298498442 | AM35: 8.369916474 | AQ35: -
C36: Thu-18 | I36: - | J36: - | K36: =IF(OR(D36=0,D36="-",E36=0,H36<=0,G36<5),"-",ROUNDUP(ct(F36,G36,H36)*$K$14,0)) -> - | L36: - | M36: - | N36: - | AF36: Thu | AG36: 18 | AI36: 18 | AJ36: 3.298498442 | AM36: 8.369916474 | AQ36: -
C37: Fri-19 | I37: - | J37: - | K37: =IF(OR(D37=0,D37="-",E37=0,H37<=0,G37<5),"-",ROUNDUP(ct(F37,G37,H37)*$K$14,0)) -> - | L37: - | M37: - | N37: - | AF37: Fri | AG37: 19 | AI37: 19 | AJ37: 3.298498442 | AM37: 8.369916474 | AQ37: -
C38: Sat-20 | I38: - | J38: - | K38: =IF(OR(D38=0,D38="-",E38=0,H38<=0,G38<5),"-",ROUNDUP(ct(F38,G38,H38)*$K$14,0)) -> - | L38: - | M38: - | N38: - | AF38: Sat | AG38: 20 | AI38: 20 | AJ38: 3.298498442 | AM38: 8.369916474 | AQ38: -
C39: Sun-21 | I39: - | J39: - | K39: =IF(OR(D39=0,D39="-",E39=0,H39<=0,G39<5),"-",ROUNDUP(ct(F39,G39,H39)*$K$14,0)) -> - | L39: - | M39: - | N39: - | AF39: Sun | AG39: 21 | AI39: 21 | AJ39: 3.298498442 | AM39: 8.369916474 | AQ39: -
C40: Mon-22 | I40: - | J40: - | K40: =IF(OR(D40=0,D40="-",E40=0,H40<=0,G40<5),"-",ROUNDUP(ct(F40,G40,H40)*$K$14,0)) -> - | L40: - | M40: - | N40: - | AF40: Mon | AG40: 22 | AI40: 22 | AJ40: 3.298498442 | AM40: 8.369916474 | AQ40: -
C41: Tue-23 | I41: - | J41: - | K41: =IF(OR(D41=0,D41="-",E41=0,H41<=0,G41<5),"-",ROUNDUP(ct(F41,G41,H41)*$K$14,0)) -> - | L41: - | M41: - | N41: - | AF41: Tue | AG41: 23 | AI41: 23 | AJ41: 3.298498442 | AM41: 8.369916474 | AQ41: -
C42: Wed-24 | I42: - | J42: - | K42: =IF(OR(D42=0,D42="-",E42=0,H42<=0,G42<5),"-",ROUNDUP(ct(F42,G42,H42)*$K$14,0)) -> - | L42: - | M42: - | N42: - | AF42: Wed | AG42: 24 | AI42: 24 | AJ42: 3.298498442 | AM42: 8.369916474 | AQ42: -
C43: Thu-25 | I43: - | J43: - | K43: =IF(OR(D43=0,D43="-",E43=0,H43<=0,G43<5),"-",ROUNDUP(ct(F43,G43,H43)*$K$14,0)) -> - | L43: - | M43: - | N43: - | AF43: Thu | AG43: 25 | AI43: 25 | AJ43: 3.298498442 | AM43: 8.369916474 | AQ43: -
C44: Fri-26 | I44: - | J44: - | K44: =IF(OR(D44=0,D44="-",E44=0,H44<=0,G44<5),"-",ROUNDUP(ct(F44,G44,H44)*$K$14,0)) -> - | L44: - | M44: - | N44: - | AF44: Fri | AG44: 26 | AI44: 26 | AJ44: 3.298498442 | AM44: 8.369916474 | AQ44: -
C45: Sat-27 | I45: - | J45: - | K45: =IF(OR(D45=0,D45="-",E45=0,H45<=0,G45<5),"-",ROUNDUP(ct(F45,G45,H45)*$K$14,0)) -> - | L45: - | M45: - | N45: - | AF45: Sat | AG45: 27 | AI45: 27 | AJ45: 3.298498442 | AM45: 8.369916474 | AQ45: -
C46: Sun-28 | I46: - | J46: - | K46: =IF(OR(D46=0,D46="-",E46=0,H46<=0,G46<5),"-",ROUNDUP(ct(F46,G46,H46)*$K$14,0)) -> - | L46: - | M46: - | N46: - | AF46: Sun | AG46: 28 | AI46: 28 | AJ46: 3.298498442 | AM46: 8.369916474 | AQ46: -
C47: Mon-29 | I47: - | J47: - | K47: =IF(OR(D47=0,D47="-",E47=0,H47<=0,G47<5),"-",ROUNDUP(ct(F47,G47,H47)*$K$14,0)) -> - | L47: - | M47: - | N47: - | AF47: Mon | AG47: 29 | AI47: 29 | AJ47: 3.298498442 | AM47: 8.369916474 | AQ47: -
C48: Tue-30 | I48: - | J48: - | K48: =IF(OR(D48=0,D48="-",E48=0,H48<=0,G48<5),"-",ROUNDUP(ct(F48,G48,H48)*$K$14,0)) -> - | L48: - | M48: - | N48: - | AF48: Tue | AG48: 30 | AI48: 30 | AJ48: 3.298498442 | AM48: 8.369916474 | AQ48: -
C49: Wed-31 | I49: - | J49: - | K49: =IF(OR(D49=0,D49="-",E49=0,H49<=0,G49<5),"-",ROUNDUP(ct(F49,G49,H49)*$K$14,0)) -> - | L49: - | M49: - | N49: - | AF49: Wed | AG49: 31 | AI49: 31 | AJ49: 3.298498442 | AM49: 8.369916474 | AQ49: -
C50: Min | D50: =MIN(D19:D49) -> 6.4 | E50: 1 | F50: 5 | G50: 7.3 | H50: 0.3 | I50: 3700 | J50: 39.41908714 | K50: =MIN(K19:K49) -> 18 | L50: =MIN(L19:L49) -> 38 | M50: =MIN(M19:M49) -> 1.461538462 | N50: =MIN(N19:N49) -> 0.7307692308 | AE50: Average Giardia: | AF50: =AVERAGE(N19:N49) -> 3.298498442 | AJ50: 3.298498442 | AQ50: =MIN(AQ19:AQ49) -> 0.2435897436
C51: Median | D51: =IF(SUM(D19:D49)<=0,0,MEDIAN(D19:D49)) -> 150.5 | E51: =IF(SUM(E19:E49)<=0,0,MEDIAN(E19:E49)) -> 4.75 | F51: =IF(SUM(F19:F49)<=0,0,MEDIAN(F19:F49)) -> 12 | G51: =IF(SUM(G19:G49)<=0,0,MEDIAN(G19:G49)) -> 7.84 | H51: =IF(SUM(H19:H49)<=0,0,MEDIAN(H19:H49)) -> 0.67 | I51: =IF(SUM(I19:I49)<=0,0,MEDIAN(I19:I49)) -> 10075 | J51: =IF(SUM(J19:J49)<=0,0,MEDIAN(J19:J49)) -> 67.77351485 | K51: 20.5 | L51: 55.72860606 | M51: =IF(SUM(M19:M49)<=0,0,MEDIAN(M19:M49)) -> 3.010164606 | N51: 1.505082303 | AQ51: =IF(SUM(AQ19:AQ49)<=0,0,MEDIAN(AQ19:AQ49)) -> 0.5016941009
C52: Max | D52: =MAX(D19:D49) -> 482 | E52: =MAX(E19:E49) -> 10 | F52: =MAX(F19:F49) -> 13.9 | G52: =MAX(G19:G49) -> 8 | H52: =MAX(H19:H49) -> 1.49 | I52: =MAX(I19:I49) -> 19000 | J52: =MAX(J19:J49) -> 1109.375 | K52: 33 | L52: 554.6875 | M52: =MAX(M19:M49) -> 25.21306818 | N52: 12.60653409 | AQ52: =MAX(AQ19:AQ49) -> 4.20217803
C54: Print Name: | M54: Certification Grade:
C55: Signature: | K55: Date:
C57: 1 Note: If flow is approximately constant over a 24 hour period,
C58: then use maximum pH value and lowest chlorine residual and temperature values. | AN58: Equation:
AN59: 1 | AO59: pH = 6 - 7.5, Temp. =0.5 - 5
AN60: 2 | AO60: pH = 7.5 - 9, Temp. =0.5 - 5
AN61: 3 | AO61: pH = 6 - 7.5, Temp. =5 - 10
AN62: 4 | AO62: pH = 7.5 - 9, Temp. =5 - 10
AN63: 5 | AO63: pH = 6 - 7.5, Temp. =10 - 15
AN64: 6 | AO64: pH = 7.5 - 9, Temp. =10 - 15
AN65: 7 | AO65: pH = 6 - 7.5, Temp. =15 - 20
AN66: 8 | AO66: pH = 7.5 - 9, Temp. =15 - 20
AN67: 9 | AO67: pH = 6 - 7.5, Temp. =20 - 25
AN68: 10 | AO68: pH = 7.5 - 9, Temp. =20 - 25
